[Event "57th Biel Festival ATO 2024"]
[Site "Biel"]
[Date "2024.07.18"]
[Round "3.36"]
[White "Pantillon, Patrick Andre"]
[Black "Ademi, Rexhe"]
[Result "1-0"]
[ECO "A02"]
[WhiteElo "1782"]
[BlackElo "1635"]
[Annotator "NA RC"]
[PlyCount "101"]
[EventDate "2024.07.03"]
[EventType "swiss"]
[EventCountry "SUI"]
[SourceTitle "playchess.com"]
[Source "ChessBase"]
[SourceQuality "1"]
[TimeControl "40/5400+30:1800+30"]

1. f4 {[%emt 0:00:07]} Nf6 {[%emt 0:00:00]} 2. Nc3 {[%emt 0:00:30]} d6 {[%emt 0:00:03]} 3. Nf3 {[%emt 0:00:02]} g6 {[%emt 0:00:17]} 4. e4 {[%emt 0:01:07]} Bg4 {[%emt 0:00:26]} 5. h3 {[%emt 0:00:35]} Bxf3 {[%emt 0:00:09]} 6. Qxf3 {[%emt 0:00:11]} Bg7 {[%emt 0:00:12]} 7. Bc4 {[%emt 0:00:26]} O-O {[%emt 0:00:19]} 8. d3 {[%emt 0:00:46]} Nc6 {[%emt 0:00:08]} 9. Be3 {[%emt 0:05:04]} e5 {[%emt 0:00:23]} 10. f5 {[%emt 0:00:57]} Nd4 {[%emt 0:00:19]} 11. Bxd4 {[%emt 0:00:25]} exd4 {[%emt 0:00:07]} 12. Ne2 {[%emt 0:00:54]} c5 {[%emt 0:00:29]} 13. O-O {[%emt 0:07:34]} Kh8 {[%emt 0:00:30]} 14. Kh1 {[%emt 0:00:30]} Qe7 {[%emt 0:00:24]} 15. g4 {[%emt 0:00:45]} Rae8 {[%emt 0:00:53]} 16. g5 {[%emt 0:00:45]} d5 {[%emt 0:02:14]} 17. gxf6 {[%emt 0:02:38]} Bxf6 {[%emt 0:00:11]} 18. Bxd5 {[%emt 0:00:41]} Qe5 {[%emt 0:00:55]} 19. Ng3 {[%emt 0:04:48]} Bg5 {[%emt 0:03:16]} 20. Qg4 {[%emt 0:04:32]} Be3 {[%emt 0:00:31]} 21. Rf3 {[%emt 0:01:09]} Qg7 {[%emt 0:01:56]} 22. Raf1 {[%emt 0:03:19]} h5 {[%emt 0:00:41]} 23. Nxh5 {[%emt 0:01:04]} gxh5 {[%emt 0:00:48]} 24. Qxh5+ {[%emt 0:00:36]} Qh7 {[%emt 0:01:06]} 25. Qxh7+ {[%emt 0:05:43]} Kxh7 {[%emt 0:00:30]} 26. b3 {[%emt 0:00:30]} b6 {[%emt 0:00:30]} 27. Rg3 {[%emt 0:00:47]} Re7 {[%emt 0:01:00]} 28. Rg4 {[%emt 0:01:29]} f6 {[%emt 0:01:21]} 29. Rf3 {[%emt 0:01:02]} Rg7 {[%emt 0:01:21]} 30. Rh4+ {[%emt 0:03:03]} Bh6 {[%emt 0:00:12]} 31. Rff4 {[%emt 0:07:25]} Rg5 {[%emt 0:00:22]} 32. Rfg4 {[%emt 0:02:19]} Kg7 {[%emt 0:00:46]} 33. Rxg5+ {[%emt 0:01:31]} Bxg5 {[%emt 0:00:49]} 34. Rg4 {[%emt 0:00:29]} Rh8 {[%emt 0:00:33]} 35. Kg2 {[%emt 0:00:28]} Kf8 {[%emt 0:00:33]} 36. e5 {[%emt 0:05:29]} Ke7 {[%emt 0:00:16]} 37. Kg3 {[%emt 0:02:34]} Bh6 {[%emt 0:02:31]} 38. e6 {[%emt 0:06:19]} Kd6 {[%emt 0:00:37]} 39. Bc4 {[%emt 0:01:37]} Ke5 {[%emt 0:00:19]} 40. Re4+ {[%emt 0:00:35]} Kd6 {[%emt 0:03:37]} 41. e7 {[%emt 0:33:51]} b5 {[%emt 0:39:29]} 42. Re6+ {[%emt 0:00:57]} Kc7 {[%emt 0:01:05]} 43. Bxb5 {[%emt 0:00:15]} Rg8+ {[%emt 0:00:26]} 44. Kf3 {[%emt 0:00:23]} Bg5 {[%emt 0:01:50]} 45. e8=Q {[%emt 0:00:37]} Rxe8 {[%emt 0:00:09]} 46. Bxe8 {[%emt 0:00:29]} Kd8 {[%emt 0:00:33]} 47. Ke4 {[%emt 0:00:23]} a5 {[%emt 0:00:21]} 48. a4 {[%emt 0:00:14]} Kc7 {[%emt 0:01:33]} 49. Kd5 {[%emt 0:00:30]} Kd8 {[%emt 0:00:30]} 50. Kc6 {[%emt 0:00:49]} Bf4 {[%emt 0:01:14]} 51. Bd7 {[%emt 0:00:31]} 1-0

[Event "57th Biel Festival ATO 2024"]
[Site "Biel"]
[Date "2024.07.18"]
[Round "3.37"]
[White "Moon, Sunwoong"]
[Black "Trachsel, Peter"]
[Result "1-0"]
[ECO "D02"]
[WhiteElo "1661"]
[BlackElo "1782"]
[Annotator "NA RC"]
[PlyCount "87"]
[EventDate "2024.07.03"]
[EventType "swiss"]
[EventCountry "SUI"]
[SourceTitle "playchess.com"]
[Source "ChessBase"]
[SourceQuality "1"]
[TimeControl "40/5400+30:1800+30"]

1. d4 {[%emt 0:00:05]} d5 {[%emt 0:00:19]} 2. Bf4 {[%emt 0:00:03]} c6 {[%emt 0:00:29]} 3. e3 {[%emt 0:00:08]} Bf5 {[%emt 0:00:42]} 4. c4 {[%emt 0:00:50]} e6 {[%emt 0:01:02]} 5. Nc3 {[%emt 0:00:25]} Nf6 {[%emt 0:00:44]} 6. Qb3 {[%emt 0:00:24]} Qb6 {[%emt 0:01:30]} 7. Nf3 {[%emt 0:00:46]} Nbd7 {[%emt 0:00:50]} 8. c5 {[%emt 0:01:34]} Qxb3 {[%emt 0:04:36]} 9. axb3 {[%emt 0:00:09]} Be7 {[%emt 0:00:12]} 10. h3 {[%emt 0:01:45]} O-O {[%emt 0:01:04]} 11. Be2 {[%emt 0:01:11]} Rfe8 {[%emt 0:02:36]} 12. b4 {[%emt 0:00:54]} a6 {[%emt 0:05:07]} 13. O-O {[%emt 0:00:18]} Rec8 {[%emt 0:03:03]} 14. Nh4 {[%emt 0:01:33]} Bc2 {[%emt 0:03:34]} 15. Rfc1 {[%emt 0:00:40]} Bg6 {[%emt 0:04:44]} 16. Nxg6 {[%emt 0:00:33]} hxg6 {[%emt 0:00:17]} 17. f3 {[%emt 0:02:35]} Nh5 {[%emt 0:01:49]} 18. Bh2 {[%emt 0:00:20]} Bd8 {[%emt 0:05:59]} 19. e4 {[%emt 0:02:27]} Bg5 {[%emt 0:04:22]} 20. Rd1 {[%emt 0:01:53]} Bf4 {[%emt 0:01:57]} 21. g4 {[%emt 0:04:23]} Bxh2+ {[%emt 0:00:47]} 22. Kxh2 {[%emt 0:00:09]} Nf4 {[%emt 0:00:17]} 23. Bf1 {[%emt 0:00:14]} g5 {[%emt 0:01:01]} 24. Kg3 {[%emt 0:00:52]} Ng6 {[%emt 0:01:07]} 25. Bd3 {[%emt 0:01:26]} Nf4 {[%emt 0:02:09]} 26. exd5 {[%emt 0:02:28]} Nxd5 {[%emt 0:05:09]} 27. Nxd5 {[%emt 0:00:18]} exd5 {[%emt 0:00:36]} 28. Bf5 {[%emt 0:00:59]} Rc7 {[%emt 0:00:43]} 29. Re1 {[%emt 0:01:08]} Nf8 {[%emt 0:02:28]} 30. Re5 {[%emt 0:00:39]} f6 {[%emt 0:02:45]} 31. Re2 {[%emt 0:00:54]} Kf7 {[%emt 0:04:17]} 32. f4 {[%emt 0:03:27]} gxf4+ {[%emt 0:02:39]} 33. Kxf4 {[%emt 0:00:37]} g6 {[%emt 0:00:14]} 34. Bd3 {[%emt 0:03:54]} Ne6+ {[%emt 0:00:51]} 35. Rxe6 {[%emt 0:00:17]} Kxe6 {[%emt 0:01:42]} 36. Bxg6 {[%emt 0:00:09]} Re7 {[%emt 0:02:09]} 37. h4 {[%emt 0:01:23]} Kd7 {[%emt 0:03:55]} 38. h5 {[%emt 0:00:45]} Rh8 {[%emt 0:01:31]} 39. Kf5 {[%emt 0:00:46]} Rf8 {[%emt 0:01:37]} 40. h6 {[%emt 0:04:38]} Re2 {[%emt 0:01:01]} 41. Rf1 {[%emt 0:31:51]} Re4 {[%emt 0:33:55]} 42. h7 {[%emt 0:00:29]} Rxd4 {[%emt 0:01:35]} 43. Bf7 {[%emt 0:00:23]} Ke7 {[%emt 0:01:39]} 44. Bg8 {[%emt 0:00:10]} 1-0

[Event "57th Biel Festival ATO 2024"]
[Site "Biel"]
[Date "2024.07.18"]
[Round "3.38"]
[White "Galerne, Rene"]
[Black "Brandes, Stefan"]
[Result "1-0"]
[ECO "B15"]
[WhiteElo "1773"]
[BlackElo "1624"]
[Annotator "NA RC"]
[PlyCount "113"]
[EventDate "2024.07.03"]
[EventType "swiss"]
[EventCountry "SUI"]
[SourceTitle "playchess.com"]
[Source "ChessBase"]
[SourceQuality "1"]
[TimeControl "40/5400+30:1800+30"]

1. e4 {[%emt 0:00:06]} c6 {[%emt 0:00:04]} 2. d4 {[%emt 0:00:21]} d5 {[%emt 0:00:05]} 3. Nc3 {[%emt 0:00:33]} dxe4 {[%emt 0:00:11]} 4. Nxe4 {[%emt 0:00:19]} Nf6 {[%emt 0:00:07]} 5. Nxf6+ {[%emt 0:00:39]} exf6 {[%emt 0:00:06]} 6. c3 {[%emt 0:00:31]} Bd6 {[%emt 0:00:11]} 7. Bd3 {[%emt 0:00:33]} O-O {[%emt 0:00:19]} 8. Qc2 {[%emt 0:01:20]} Re8+ {[%emt 0:00:17]} 9. Be3 {[%emt 0:01:13]} h5 {[%emt 0:00:12]} 10. O-O-O {[%emt 0:03:26]} Nd7 {[%emt 0:04:48]} 11. Nh3 {[%emt 0:00:32]} Nf8 {[%emt 0:08:27]} 12. Nf4 {[%emt 0:03:31]} g6 {[%emt 0:13:51]} 13. h3 {[%emt 0:05:31]} Bxf4 {[%emt 0:06:04]} 14. Bxf4 {[%emt 0:00:30]} Be6 {[%emt 0:05:03]} 15. b3 {[%emt 0:01:29]} b5 {[%emt 0:03:37]} 16. Be4 {[%emt 0:07:45]} Bd5 {[%emt 0:06:36]} 17. f3 {[%emt 0:03:59]} f5 {[%emt 0:08:39]} 18. Bd3 {[%emt 0:04:12]} Ne6 {[%emt 0:03:23]} 19. Qd2 {[%emt 0:03:29]} Qa5 {[%emt 0:13:08]} 20. Kb2 {[%emt 0:01:23]} c5 {[%emt 0:04:03]} 21. c4 {[%emt 0:09:31]} Qxd2+ {[%emt 0:00:08]} 22. Bxd2 {[%emt 0:00:08]} bxc4 {[%emt 0:00:03]} 23. bxc4 {[%emt 0:00:22]} Bc6 {[%emt 0:01:27]} 24. d5 {[%emt 0:00:15]} Ba4 {[%emt 0:00:28]} 25. dxe6 {[%emt 0:02:36]} Bxd1 {[%emt 0:00:33]} 26. exf7+ {[%emt 0:00:08]} Kxf7 {[%emt 0:00:10]} 27. Rxd1 {[%emt 0:00:06]} Rad8 {[%emt 0:03:03]} 28. Bg5 {[%emt 0:04:19]} Rd4 {[%emt 0:04:50]} 29. Kc3 {[%emt 0:01:24]} f4 {[%emt 0:02:01]} 30. Bh4 {[%emt 0:02:09]} Re5 {[%emt 0:03:48]} 31. Re1 {[%emt 0:03:25]} Re3 {[%emt 0:03:55]} 32. Rxe3 {[%emt 0:01:11]} fxe3 {[%emt 0:00:03]} 33. Bg5 {[%emt 0:00:15]} e2 {[%emt 0:03:12]} 34. Bxe2 {[%emt 0:00:16]} Rd6 {[%emt 0:00:01]} 35. Bd3 {[%emt 0:08:12]} Ra6 {[%emt 0:00:30]} 36. Kb2 {[%emt 0:04:30]} Rb6+ {[%emt 0:00:07]} 37. Ka1 {[%emt 0:00:42]} Re6 {[%emt 0:01:04]} 38. Be4 {[%emt 0:00:37]} Re5 {[%emt 0:02:22]} 39. Bf4 {[%emt 0:01:53]} Re7 {[%emt 0:00:32]} 40. Bd6 {[%emt 0:00:22]} Rd7 {[%emt 0:00:18]} 41. Bd5+ {[%emt 0:30:19]} Kf6 {[%emt 0:30:24]} 42. Bxc5 {[%emt 0:00:25]} Ke5 {[%emt 0:00:41]} 43. Be3 {[%emt 0:02:09]} Kf5 {[%emt 0:01:55]} 44. g4+ {[%emt 0:00:43]} Kf6 {[%emt 0:01:04]} 45. f4 {[%emt 0:01:03]} hxg4 {[%emt 0:00:00]} 46. hxg4 {[%emt 0:00:00]} Rh7 {[%emt 0:00:00]} 47. Bd4+ {[%emt 0:00:00]} Ke7 {[%emt 0:00:00]} 48. g5 {[%emt 0:00:00]} Rh2 {[%emt 0:00:00]} 49. Be5 {[%emt 0:00:00]} Rf2 {[%emt 0:00:00]} 50. c5 {[%emt 0:00:00]} Rf1+ {[%emt 0:00:00]} 51. Kb2 {[%emt 0:00:00]} Rf2+ {[%emt 0:00:00]} 52. Kb3 {[%emt 0:00:00]} a5 {[%emt 0:00:00]} 53. Bd6+ {[%emt 0:00:00]} Kd8 {[%emt 0:00:00]} 54. Ka4 {[%emt 0:00:00]} Rd2 {[%emt 0:00:00]} 55. Bf7 {[%emt 0:00:00]} Kd7 {[%emt 0:00:00]} 56. Kxa5 {[%emt 0:00:00]} Kc6 {[%emt 0:00:00]} 57. a4 {[%emt 0:00:00]} 1-0

[Event "57th Biel Festival ATO 2024"]
[Site "Biel"]
[Date "2024.07.18"]
[Round "3.39"]
[White "Fernandez Van Raap, Marcela"]
[Black "Retti, Marco"]
[Result "0-1"]
[ECO "B06"]
[WhiteElo "1613"]
[BlackElo "1772"]
[Annotator "NA RC"]
[PlyCount "48"]
[EventDate "2024.07.03"]
[EventType "swiss"]
[EventCountry "SUI"]
[SourceTitle "playchess.com"]
[Source "ChessBase"]
[SourceQuality "1"]
[TimeControl "40/5400+30:1800+30"]

1. e4 {[%emt 0:00:10]} g6 {[%emt 0:00:09]} 2. d4 {[%emt 0:01:26]} Bg7 {[%emt 0:00:43]} 3. Nf3 {[%emt 0:00:24]} Nf6 {[%emt 0:02:58]} 4. Nc3 {[%emt 0:04:32]} O-O {[%emt 0:01:45]} 5. e5 {[%emt 0:02:54]} Ne8 {[%emt 0:01:14]} 6. Bc4 {[%emt 0:01:59]} a6 {[%emt 0:01:04]} 7. Bg5 {[%emt 0:02:24]} d6 {[%emt 0:00:30]} 8. Nd5 {[%emt 0:05:29]} Nc6 {[%emt 0:01:23]} 9. Qd2 {[%emt 0:15:06]} Be6 {[%emt 0:01:05]} 10. Nxe7+ {[%emt 0:00:30]} Nxe7 {[%emt 0:01:02]} 11. d5 {[%emt 0:01:40]} dxe5 {[%emt 0:01:15]} 12. dxe6 {[%emt 0:01:57]} f6 {[%emt 0:00:58]} 13. O-O-O {[%emt 0:01:14]} Nd6 {[%emt 0:00:17]} 14. Bxf6 {[%emt 0:05:17]} Bxf6 {[%emt 0:00:33]} 15. Bb3 {[%emt 0:00:32]} Kg7 {[%emt 0:01:50]} 16. Qe2 {[%emt 0:02:28]} Nc6 {[%emt 0:02:42]} 17. Rhe1 {[%emt 0:01:44]} Qe7 {[%emt 0:02:11]} 18. a3 {[%emt 0:02:59]} Rad8 {[%emt 0:01:22]} 19. Kb1 {[%emt 0:00:46]} e4 {[%emt 0:01:40]} 20. Nd2 {[%emt 0:00:58]} Nd4 {[%emt 0:00:39]} 21. Qg4 {[%emt 0:01:00]} Nxb3 {[%emt 0:09:04]} 22. Nxb3 {[%emt 0:00:52]} Bxb2 {[%emt 0:13:15]} 23. Kxb2 {[%emt 0:01:28]} Nc4+ {[%emt 0:00:05]} 24. Kc1 {[%emt 0:01:38]} Qxa3+ {[%emt 0:00:22]} 0-1

[Event "57th Biel Festival ATO 2024"]
[Site "Biel"]
[Date "2024.07.18"]
[Round "3.40"]
[White "Harte, Bernd"]
[Black "Boillat, Maxime"]
[Result "1-0"]
[ECO "A00"]
[WhiteElo "1592"]
[BlackElo "1768"]
[Annotator "NA"]
[PlyCount "86"]
[EventDate "2024.07.03"]
[EventType "swiss"]
[EventCountry "SUI"]
[SourceTitle "playchess.com"]
[Source "ChessBase"]
[SourceQuality "1"]
[TimeControl "40/5400+30:1800+30"]

1. g4 {[%emt 0:00:07]} d5 {[%emt 0:00:49]} 2. Bg2 {[%emt 0:00:09]} Bxg4 {[%emt 0:01:50]} 3. c4 {[%emt 0:00:37]} c6 {[%emt 0:00:24]} 4. Qb3 {[%emt 0:00:29]} Nf6 {[%emt 0:01:42]} 5. Qxb7 {[%emt 0:00:39]} Nbd7 {[%emt 0:00:18]} 6. cxd5 {[%emt 0:03:09]} cxd5 {[%emt 0:00:34]} 7. Nc3 {[%emt 0:00:39]} e6 {[%emt 0:03:13]} 8. d3 {[%emt 0:05:44]} Bc5 {[%emt 0:05:56]} 9. Bf4 {[%emt 0:05:33]} O-O {[%emt 0:06:28]} 10. b4 {[%emt 0:04:07]} Bd4 {[%emt 0:01:32]} 11. Rc1 {[%emt 0:03:19]} Rc8 {[%emt 0:01:02]} 12. Bd2 {[%emt 0:01:24]} Ne5 {[%emt 0:06:29]} 13. a3 {[%emt 0:06:45]} Rc7 {[%emt 0:02:37]} 14. Qa6 {[%emt 0:00:38]} Rc6 {[%emt 0:09:40]} 15. Qb7 {[%emt 0:01:50]} Re8 {[%emt 0:06:22]} 16. Na4 {[%emt 0:09:34]} Re7 {[%emt 0:05:57]} 17. Qb5 {[%emt 0:01:07]} a6 {[%emt 0:00:20]} 18. Qa5 {[%emt 0:00:20]} Rxc1+ {[%emt 0:03:26]} 19. Bxc1 {[%emt 0:00:18]} Qxa5 {[%emt 0:00:04]} 20. bxa5 {[%emt 0:00:17]} Rc7 {[%emt 0:01:45]} 21. Bd2 {[%emt 0:03:18]} Rc2 {[%emt 0:01:40]} 22. f4 {[%emt 0:00:41]} Ned7 {[%emt 0:01:28]} 23. Nf3 {[%emt 0:00:55]} Bxf3 {[%emt 0:00:39]} 24. Bxf3 {[%emt 0:00:10]} Ra2 {[%emt 0:01:32]} 25. e3 {[%emt 0:00:28]} Ba7 {[%emt 0:09:34]} 26. Bc1 {[%emt 0:02:13]} Ne8 {[%emt 0:00:30]} 27. Bd1 {[%emt 0:04:01]} Nc5 {[%emt 0:01:58]} 28. Nxc5 {[%emt 0:02:37]} Bxc5 {[%emt 0:00:12]} 29. Bb3 {[%emt 0:01:05]} Ra1 {[%emt 0:00:48]} 30. O-O {[%emt 0:01:07]} Bxa3 {[%emt 0:00:25]} 31. Bxa3 {[%emt 0:00:53]} Rxa3 {[%emt 0:00:12]} 32. Rb1 {[%emt 0:03:56]} Rxa5 {[%emt 0:00:46]} 33. e4 {[%emt 0:00:12]} dxe4 {[%emt 0:01:17]} 34. dxe4 {[%emt 0:01:00]} Rb5 {[%emt 0:00:28]} 35. Kf2 {[%emt 0:00:39]} g6 {[%emt 0:01:09]} 36. Ke3 {[%emt 0:00:15]} Kg7 {[%emt 0:00:33]} 37. Kd4 {[%emt 0:00:20]} Nd6 {[%emt 0:02:19]} 38. e5 {[%emt 0:00:54]} Nb7 {[%emt 0:00:47]} 39. Kc4 {[%emt 0:01:19]} Na5+ {[%emt 0:00:21]} 40. Kc3 {[%emt 0:00:18]} Rxb3+ {[%emt 0:00:18]} 41. Rxb3 {[%emt 0:30:18]} Nxb3 {[%emt 0:30:06]} 42. Kxb3 {[%emt 0:00:04]} Kh6 {[%emt 0:00:46]} 43. Ka4 {[%emt 0:00:13]} Kh5 {[%emt 0:00:11]} 1-0

[Event "57th Biel Festival ATO 2024"]
[Site "Biel"]
[Date "2024.07.18"]
[Round "3.41"]
[White "Zarriess, Benjamin"]
[Black "Ahn, Taehyun"]
[Result "1/2-1/2"]
[ECO "B29"]
[WhiteElo "1767"]
[BlackElo "1583"]
[Annotator "NA RC"]
[PlyCount "32"]
[EventDate "2024.07.03"]
[EventType "swiss"]
[EventCountry "SUI"]
[SourceTitle "playchess.com"]
[Source "ChessBase"]
[SourceQuality "1"]
[TimeControl "40/5400+30:1800+30"]

1. e4 {[%emt 0:00:11]} c5 {[%emt 0:00:13]} 2. Nf3 {[%emt 0:00:12]} Nf6 {[%emt 0:00:30]} 3. e5 {[%emt 0:00:30]} Nd5 {[%emt 0:00:10]} 4. Nc3 {[%emt 0:00:11]} Nxc3 {[%emt 0:06:22]} 5. dxc3 {[%emt 0:00:45]} d6 {[%emt 0:10:03]} 6. Bb5+ {[%emt 0:05:15]} Bd7 {[%emt 0:02:15]} 7. Bxd7+ {[%emt 0:00:31]} Qxd7 {[%emt 0:00:35]} 8. exd6 {[%emt 0:03:47]} exd6 {[%emt 0:01:54]} 9. O-O {[%emt 0:01:26]} Nc6 {[%emt 0:09:02]} 10. Re1+ {[%emt 0:02:41]} Be7 {[%emt 0:02:11]} 11. Bf4 {[%emt 0:02:41]} O-O {[%emt 0:12:04]} 12. Qd3 {[%emt 0:04:36]} Rfe8 {[%emt 0:11:08]} 13. Rad1 {[%emt 0:03:35]} Red8 {[%emt 0:09:55]} 14. Ng5 {[%emt 0:07:23]} g6 {[%emt 0:05:25]} 15. Qd5 {[%emt 0:04:47]} h6 {[%emt 0:17:54]} 16. Nf3 {[%emt 0:23:01]} h5 {[%emt 0:08:15]} 1/2-1/2

[Event "57th Biel Festival ATO 2024"]
[Site "Biel"]
[Date "2024.07.19"]
[Round "4.1"]
[White "Kuenzi, Anton"]
[Black "Kulikov, Mikhail L"]
[Result "1-0"]
[ECO "A13"]
[WhiteElo "1862"]
[BlackElo "1954"]
[Annotator "RC"]
[PlyCount "89"]
[EventDate "2024.07.03"]
[EventType "swiss"]
[EventCountry "SUI"]
[SourceTitle "playchess.com"]
[Source "ChessBase"]
[SourceQuality "1"]
[TimeControl "40/5400+30:1800+30"]

1. Nf3 {[%emt 0:00:07]} Nf6 {[%emt 0:00:18]} 2. b3 {[%emt 0:00:22]} e6 {[%emt 0:01:04]} 3. Bb2 {[%emt 0:00:12]} d5 {[%emt 0:00:25]} 4. c4 {[%emt 0:00:25]} Be7 {[%emt 0:00:33]} 5. e3 {[%emt 0:00:19]} O-O {[%emt 0:00:20]} 6. Nc3 {[%emt 0:00:41]} b6 {[%emt 0:00:44]} 7. cxd5 {[%emt 0:05:28]} exd5 {[%emt 0:00:20]} 8. Rc1 {[%emt 0:06:53]} Bb7 {[%emt 0:01:12]} 9. d4 {[%emt 0:07:18]} Re8 {[%emt 0:01:08]} 10. Ne5 {[%emt 0:08:06]} Bd6 {[%emt 0:03:20]} 11. Bd3 {[%emt 0:14:16]} a6 {[%emt 0:08:32]} 12. f4 {[%emt 0:09:52]} c5 {[%emt 0:03:20]} 13. O-O {[%emt 0:05:41]} cxd4 {[%emt 0:01:36]} 14. exd4 {[%emt 0:00:40]} Nbd7 {[%emt 0:01:12]} 15. Qf3 {[%emt 0:04:41]} b5 {[%emt 0:04:46]} 16. Kh1 {[%emt 0:03:00]} Nf8 {[%emt 0:05:14]} 17. g4 {[%emt 0:08:19]} Ne4 {[%emt 0:06:01]} 18. Nxe4 {[%emt 0:01:28]} dxe4 {[%emt 0:00:13]} 19. Bxe4 {[%emt 0:00:56]} Bxe4 {[%emt 0:01:22]} 20. Qxe4 {[%emt 0:00:30]} Qh4 {[%emt 0:03:28]} 21. Qf5 {[%emt 0:03:58]} f6 {[%emt 0:04:47]} 22. Nf3 {[%emt 0:01:28]} Qh3 {[%emt 0:00:36]} 23. Qd5+ {[%emt 0:02:11]} Kh8 {[%emt 0:00:31]} 24. Ng1 {[%emt 0:01:52]} Qxg4 {[%emt 0:04:17]} 25. Qxd6 {[%emt 0:00:23]} Rad8 {[%emt 0:01:02]} 26. Qc6 {[%emt 0:02:59]} Ng6 {[%emt 0:01:51]} 27. Qg2 {[%emt 0:00:43]} Qf5 {[%emt 0:00:40]} 28. Qh3 {[%emt 0:03:41]} Qd5+ {[%emt 0:01:38]} 29. Qf3 {[%emt 0:00:32]} Qf5 {[%emt 0:02:36]} 30. Rc5 {[%emt 0:01:00]} Qd7 {[%emt 0:00:54]} 31. f5 {[%emt 0:03:21]} Nh4 {[%emt 0:01:47]} 32. Qc6 {[%emt 0:03:20]} Qe7 {[%emt 0:00:26]} 33. Rc2 {[%emt 0:01:31]} Rd6 {[%emt 0:04:26]} 34. Qc3 {[%emt 0:00:41]} Qe4+ {[%emt 0:01:47]} 35. Nf3 {[%emt 0:00:01]} Rdd8 {[%emt 0:12:47]} 36. Qc6 {[%emt 0:00:58]} Qxf5 {[%emt 0:12:14]} 37. Rcf2 {[%emt 0:00:14]} Rc8 {[%emt 0:02:44]} 38. Nxh4 {[%emt 0:00:07]} Qg4 {[%emt 0:00:43]} 39. Rf4 {[%emt 0:01:10]} Qe2 {[%emt 0:06:07]} 40. Qg2 {[%emt 0:00:02]} g5 {[%emt 0:03:14]} 41. R4f2 {[%emt 0:31:02]} Qh5 {[%emt 0:01:24]} 42. d5 {[%emt 0:00:00]} Qxh4 {[%emt 0:00:47]} 43. Bxf6+ {[%emt 0:00:00]} Kg8 {[%emt 0:00:09]} 44. Bxg5 {[%emt 0:00:00]} Qh5 {[%emt 0:00:23]} 45. d6 {[%emt 0:00:00]} 1-0

[Event "57th Biel Festival ATO 2024"]
[Site "Biel"]
[Date "2024.07.19"]
[Round "4.2"]
[White "Andrzejewska, Anna"]
[Black "Schmid, Nicola"]
[Result "1-0"]
[ECO "C01"]
[WhiteElo "1933"]
[BlackElo "1888"]
[Annotator "RC"]
[PlyCount "55"]
[EventDate "2024.07.03"]
[EventType "swiss"]
[EventCountry "SUI"]
[SourceTitle "playchess.com"]
[Source "ChessBase"]
[SourceQuality "1"]
[TimeControl "40/5400+30:1800+30"]

1. e4 {[%emt 0:00:03]} e6 {[%emt 0:00:25]} 2. d4 {[%emt 0:00:20]} a6 {[%emt 0:00:17]} 3. c4 {[%emt 0:06:38]} c5 {[%emt 0:04:33]} 4. d5 {[%emt 0:03:33]} b5 {[%emt 0:04:14]} 5. Nf3 {[%emt 0:13:30]} exd5 {[%emt 0:11:52]} 6. exd5 {[%emt 0:04:02]} Bd6 {[%emt 0:06:19]} 7. cxb5 {[%emt 0:02:59]} Nf6 {[%emt 0:00:30]} 8. Nc3 {[%emt 0:04:02]} O-O {[%emt 0:01:29]} 9. Be2 {[%emt 0:01:00]} Bb7 {[%emt 0:02:47]} 10. O-O {[%emt 0:02:31]} Re8 {[%emt 0:02:07]} 11. Bg5 {[%emt 0:02:29]} h6 {[%emt 0:01:49]} 12. Bh4 {[%emt 0:00:50]} axb5 {[%emt 0:04:54]} 13. Nxb5 {[%emt 0:01:14]} Bf8 {[%emt 0:00:59]} 14. Bxf6 {[%emt 0:03:27]} gxf6 {[%emt 0:03:13]} 15. d6 {[%emt 0:02:51]} Na6 {[%emt 0:00:23]} 16. Nh4 {[%emt 0:11:17]} Re5 {[%emt 0:04:27]} 17. f4 {[%emt 0:02:59]} Rd5 {[%emt 0:14:27]} 18. Qe1 {[%emt 0:01:20]} Qb6 {[%emt 0:05:57]} 19. Bc4 {[%emt 0:07:43]} Rh5 {[%emt 0:04:12]} 20. Qg3+ {[%emt 0:02:18]} Bg7 {[%emt 0:13:35]} 21. Qg4 {[%emt 0:01:53]} Rxh4 {[%emt 0:01:57]} 22. Qxh4 {[%emt 0:00:04]} Qc6 {[%emt 0:00:34]} 23. Qg3 {[%emt 0:03:00]} Re8 {[%emt 0:01:16]} 24. Rae1 {[%emt 0:00:59]} Rf8 {[%emt 0:05:29]} 25. a3 {[%emt 0:05:54]} f5 {[%emt 0:01:15]} 26. Re7 {[%emt 0:01:02]} Kh8 {[%emt 0:00:29]} 27. Rfe1 {[%emt 0:05:36]} Rg8 {[%emt 0:02:46]} 28. Bxf7 {[%emt 0:09:42]} 1-0